fUSD/lending_fUSD_20240515
["ID","MTS","AMOUNT","RATE_DAILY","PERIOD"]
[327101978,1715812251021,-500.0,0.00012898,2]
[327101979,1715812251031,-500.0,0.00012898,2]
[327101980,1715812251040,-500.0,0.00012898,2]
[327101981,1715812251049,-502.02409898,0.00012898,2]
[327101982,1715812251059,-500.0,0.00012898,2]
[327101983,1715812251069,-545.46077956,0.00012898,2]
[327101984,1715812251078,-524.63191834,0.00012898,2]
[327101985,1715812251087,-500.0,0.00012898,2]
[327101986,1715812251096,-506.85889977,0.00012898,2]
[327101987,1715812251105,-500.0,0.00012898,2]
[327101988,1715812251115,-500.0,0.00012898,2]
[327101989,1715812251125,-500.0,0.00012898,2]
[327101990,1715812251136,-500.0,0.00012898,2]
[327101991,1715812251146,-500.0,0.00012898,2]
[327101992,1715812251157,-523.5898137,0.00012898,2]
[327101993,1715812251167,-500.0,0.00012898,2]
[327101994,1715812251177,-520.09720793,0.00012898,2]
[327101995,1715812251186,-500.0,0.00012898,2]
[327101996,1715812251197,-196.32,0.00012898,2]
[327101997,1715812251207,-500.0,0.00012898,2]
[327101998,1715812251218,-500.0,0.00012898,2]
[327101999,1715812251230,-574.4448484,0.00012898,2]
[327102000,1715812251239,-500.0,0.00012898,2]
[327102001,1715812251250,-520.53653631,0.00012898,2]
[327102002,1715812251260,-500.0,0.00012898,2]
[327102003,1715812251269,-2100.0,0.00012899,2]
[327102004,1715812251278,-393.19,0.00012899,2]
[327102005,1715812251288,-500.0,0.00012899,2]
[327102006,1715812251299,-500.0,0.00012899,2]
[327102007,1715812251308,-187.26,0.00012899,2]
[327102008,1715812251318,-281.48,0.00012899,2]
[327102009,1715812251328,-500.0,0.00012899,2]
[327102010,1715812251338,-500.0,0.00012899,2]
[327102011,1715812251348,-500.0,0.00012899,2]
[327102012,1715812251358,-500.0,0.00012899,2]
[327102013,1715812251367,-612.6,0.00012899,2]
[327102014,1715812251376,-500.0,0.00012899,2]
[327102015,1715812251386,-372.86,0.00012899,2]
[327102016,1715812251397,-442.39,0.00012899,2]
[327102017,1715812251406,-487.55,0.00012899,2]
[327102018,1715812251415,-614.22,0.00012899,2]
[327102019,1715812251425,-500.0,0.00012899,2]
[327102020,1715812251435,-245.62,0.00012899,2]
[327102021,1715812251444,-291.46263533,0.00012899,2]
[327102022,1715812251453,-500.0,0.00012899,2]
[327102023,1715812251462,-500.0,0.00012899,2]
[327102024,1715812251473,-500.0,0.00012899,2]
[327102025,1715812251482,-560.78,0.00012899,2]
[327102026,1715812251491,-500.0,0.00012899,2]
[327102027,1715812251501,-476.16,0.00012899,2]
[327102028,1715812251511,-500.0,0.00012899,2]
[327102029,1715812251521,-599.13,0.00012899,2]
[327102030,1715812251530,-500.0,0.00012899,2]
[327102031,1715812251540,-500.0,0.00012899,2]
[327102032,1715812251549,-574.86,0.00012899,2]
[327102033,1715812251558,-500.0,0.00012899,2]
[327102034,1715812251568,-612.71,0.00012899,2]
[327102035,1715812251578,-553.87,0.00012899,2]
[327102036,1715812251588,-500.0,0.00012899,2]
[327102037,1715812251597,-304.66392207,0.00012899,2]
[327102038,1715812251606,-293.97946106,0.00012899,2]
[327102039,1715812251615,-500.0,0.00012899,2]
[327102040,1715812251625,-500.0,0.00012899,2]
[327102041,1715812251634,-500.0,0.00012899,2]
[327102042,1715812251644,-500.0,0.00012899,2]
[327102043,1715812251654,-426.9,0.00012899,2]
[327102044,1715812251663,-500.0,0.00012899,2]
[327102045,1715812251672,-500.0,0.00012899,2]
[327102046,1715812251681,-193.89079897,0.00012899,2]
[327102047,1715812251691,-500.0,0.00012899,2]
[327102048,1715812251701,-500.0,0.00012899,2]
[327102049,1715812251711,-500.0,0.00012899,2]
[327102050,1715812251720,-190.65067028,0.00012899,2]
[327102051,1715812251730,-500.0,0.00012899,2]
[327102052,1715812251741,-500.0,0.00012899,2]
[327102053,1715812251750,-500.0,0.00012899,2]
[327102054,1715812251760,-410.74133116,0.00012899,2]
[327102055,1715812251771,-500.0,0.00012899,2]
[327102056,1715812251780,-640.71557501,0.00012899,2]
[327102057,1715812251791,-500.0,0.00012899,2]
[327102058,1715812251800,-500.0,0.00012899,2]
[327102059,1715812251810,-500.0,0.00012899,2]
[327102060,1715812251821,-500.0,0.00012899,2]
[327102061,1715812251831,-500.0,0.00012899,2]
[327102062,1715812251840,-500.0,0.00012899,2]
[327102063,1715812251849,-500.0,0.00012899,2]
[327102064,1715812251859,-500.0,0.00012899,2]
[327102065,1715812251873,-500.0,0.00012899,2]
[327102066,1715812251883,-500.0,0.00012899,2]
[327102067,1715812251892,-500.0,0.00012899,2]
[327102068,1715812251901,-500.0,0.00012899,2]
[327102069,1715812251912,-500.0,0.00012899,2]
[327102070,1715812251921,-500.0,0.00012899,2]
[327102071,1715812251931,-500.0,0.00012899,2]
[327102072,1715812251940,-321.43027653,0.00012899,2]
[327102073,1715812251951,-500.0,0.00012899,2]
[327102074,1715812251960,-500.0,0.00012899,2]
[327102075,1715812251969,-500.0,0.00012899,2]
[327102076,1715812251979,-500.0,0.00012899,2]
[327102077,1715812251988,-182.42,0.00012899,2]
[327102078,1715812251998,-163.41,0.00012899,2]
[327102079,1715812252007,-500.0,0.00012899,2]
[327102080,1715812252016,-500.0,0.00012899,2]
[327102081,1715812252026,-500.0,0.00012899,2]
[327102082,1715812252036,-500.0,0.00012899,2]
[327102083,1715812252046,-44872.545143,0.000129,2]
[327102084,1715812252055,-180.10595824,0.000129,2]
[327102085,1715812252065,-2000.0,0.000129,2]
[327102086,1715812252074,-200.0,0.000129,2]
[327102087,1715812252083,-162.16161132,0.000129,2]
[327102088,1715812252093,-3000.0,0.000129,2]
[327102089,1715812252102,-377.25480599,0.000129,2]
[327102090,1715812252111,-160.45,0.00012952,2]
[327102091,1715812252121,-415.22,0.00012959,2]
[327102092,1715812252130,-869.03,0.00012959,2]
[327102093,1715812252139,-869.03,0.00012959,2]
[327102094,1715812252148,-415.22,0.00012959,2]
[327102095,1715812252157,-869.03,0.00012959,2]
[327102096,1715812252167,-415.22,0.00012959,2]
[327102097,1715812252176,-415.22,0.00012959,2]
[327102098,1715812252186,-869.03,0.00012959,2]
[327102099,1715812252195,-415.22,0.00012959,2]
[327102100,1715812252205,-869.03,0.00012959,2]
[327102101,1715812252214,-623.41,0.00012959,2]
[327102102,1715812252223,-327.62,0.00012959,2]
[327102103,1715812252232,-150.0,0.00012972,2]
[327102104,1715812252242,-500.0,0.00012981,2]
[327102105,1715812252251,-331.69,0.00012985,2]
[327102106,1715812252260,-500.0,0.00012985,2]
[327102107,1715812252270,-1826.14,0.00012985,2]
[327102108,1715812252279,-500.0,0.00012985,2]
[327102109,1715812252288,-901.19,0.00012985,2]
[327102110,1715812252298,-500.0,0.00012985,2]
[327102111,1715812252307,-367.70545536,0.00012985,2]
[327102112,1715812252316,-778.65,0.00012985,2]
[327102113,1715812252326,-500.0,0.00012985,2]
[327102114,1715812252335,-500.0,0.00012985,2]
[327102115,1715812252345,-500.0,0.00012985,2]
[327102116,1715812252354,-500.0,0.00012985,2]
[327102117,1715812252364,-500.0,0.00012986,2]
[327102118,1715812252373,-500.0,0.00012986,2]
[327102119,1715812252383,-500.0,0.00012986,2]
[327102120,1715812252393,-500.0,0.00012986,2]
[327102121,1715812252403,-500.0,0.00012986,2]
[327102122,1715812252413,-500.0,0.00012986,2]
[327102123,1715812252422,-500.0,0.00012986,2]
[327102124,1715812252431,-500.0,0.00012986,2]
[327102125,1715812252441,-500.0,0.00012986,2]
[327102126,1715812252450,-159.14658625,0.00012986,2]
[327102127,1715812252459,-150.0,0.00012986,2]
[327102128,1715812252469,-500.0,0.00012986,2]
[327102129,1715812252478,-500.0,0.00012986,2]
[327102130,1715812252488,-531.46013872,0.00012986,2]
[327102131,1715812252497,-500.0,0.00012986,2]
[327102132,1715812252506,-500.0,0.00012986,2]
[327102133,1715812252516,-500.0,0.00012986,2]
[327102134,1715812252526,-500.0,0.00012986,2]
[327102135,1715812252535,-500.0,0.00012986,2]
[327102136,1715812252545,-500.0,0.00012986,2]
[327102137,1715812252554,-500.0,0.00012986,2]
[327102138,1715812252564,-500.0,0.00012986,2]
[327102139,1715812252574,-500.0,0.00012986,2]
[327102140,1715812252583,-500.0,0.00012986,2]
[327102141,1715812252592,-500.0,0.00012986,2]
[327102142,1715812252602,-500.0,0.00012986,2]
[327102143,1715812252651,-307.45,0.00012986,2]
[327102144,1715812252661,-500.0,0.00012986,2]
[327102145,1715812252670,-500.0,0.00012986,2]
[327102146,1715812252680,-500.0,0.00012986,2]
[327102147,1715812252689,-500.0,0.00012986,2]
[327102148,1715812252699,-500.0,0.00012986,2]
[327102149,1715812252708,-500.0,0.00012986,2]
[327102150,1715812252718,-500.0,0.00012986,2]
[327102151,1715812252728,-500.0,0.00012986,2]
[327102152,1715812252737,-500.0,0.00012986,2]
[327102153,1715812252747,-516.76232294,0.00012986,2]
[327102154,1715812252756,-500.0,0.00012986,2]
[327102155,1715812252766,-500.0,0.00012986,2]
[327102156,1715812252776,-500.0,0.00012986,2]
[327102157,1715812252789,-500.0,0.00012986,2]
[327102158,1715812252798,-500.0,0.00012986,2]
[327102159,1715812252807,-500.0,0.00012986,2]
[327102160,1715812252818,-500.0,0.00012986,2]
[327102161,1715812252827,-28838.316882,0.00012986,2]
[327102162,1715812253092,-6790.78450001,0.00012986,2]
[327102163,1715812253115,-412.74691942,0.0001275,2]
[327102164,1715812253282,-188.75,0.00011999,2]
[327102165,1715812253292,-595.75318454,0.0001275,2]
[327102166,1715812253303,-574.12674424,0.0001275,2]
[327102167,1715812253315,-19.4407565,0.0001275,2]
[327102168,1715812253324,-500.0,0.00012876,2]
[327102169,1715812253333,-1488.5392435,0.00012986,2]
[327102170,1715812253364,-410.03425881,0.00012875,2]
[327102171,1715812253374,-2199.35937449,0.00012986,2]
[327102172,1715812253383,-422.07887758,0.0001299,2]
[327102173,1715812253392,-392.83732012,0.0001299,2]
[327102174,1715812253403,-107.16267988,0.0001299,2]
[327102175,1715812253412,-1718.62732012,0.00012993,2]
[327102176,1715812253424,-4923.25594228,0.00012993,2]
[327102177,1715812253434,-202.65159385,0.00012994,3]
[327102178,1715812253443,-1301.96489797,0.00012994,3]
[327102179,1715812253452,-619.56145469,0.00012995,2]
[327102180,1715812253463,-500.0,0.00012995,2]
[327102181,1715812253472,-89.72448709,0.00012995,2]
[327102182,1715812253485,-410.27551291,0.00012995,2]
[327102183,1715812253494,-502.76551844,0.00012995,2]
[327102184,1715812253504,-500.0,0.00012995,2]
[327102185,1715812253513,-222.08888917,0.00012995,2]
[327102186,1715812253525,-277.91111083,0.00012995,2]
[327102187,1715812253534,-222.08888917,0.00012995,2]
[327102188,1715812253547,-277.91111083,0.00012995,2]
[327102189,1715812253556,-500.0,0.00012995,2]
[327102190,1715812253567,-500.0,0.00012995,2]
[327102191,1715812253576,-500.0,0.00012995,2]
[327102192,1715812253586,-500.0,0.00012995,2]
[327102193,1715812253596,-500.0,0.00012995,2]
[327102194,1715812253605,-508.93,0.00012995,2]
[327102195,1715812253615,-1826.14,0.00012995,2]
[327102196,1715812253624,-500.0,0.00012995,2]
[327102197,1715812253634,-500.0,0.00012995,2]
[327102198,1715812253644,-500.0,0.00012995,2]
[327102199,1715812253653,-901.19,0.00012995,2]
[327102200,1715812253662,-500.0,0.00012995,2]
[327102201,1715812253672,-778.65,0.00012995,2]
[327102202,1715812253681,-500.0,0.00012995,2]
[327102203,1715812253690,-417.76,0.00012995,2]
[327102204,1715812253699,-500.0,0.00012995,2]
[327102205,1715812253709,-500.0,0.00012995,2]
[327102206,1715812253718,-500.0,0.00012995,2]
[327102207,1715812253728,-266.78688304,0.00012995,2]
[327102208,1715812253737,-500.0,0.00012995,2]
[327102209,1715812253746,-500.0,0.00012995,2]
[327102210,1715812253755,-242.51267662,0.00012996,2]
[327102211,1715812253764,-314.051606,0.00012996,2]
[327102212,1715812253774,-314.051606,0.00012996,2]
[327102213,1715812253783,-314.051606,0.00012996,2]
[327102214,1715812253792,-273.33,0.00012996,2]
[327102215,1715812253801,-610.34,0.00012996,2]
[327102216,1715812253810,-500.0,0.00012996,2]
[327102217,1715812253821,-544.31042674,0.00012996,2]
[327102218,1715812253830,-515.08552945,0.00012996,2]
[327102219,1715812253840,-500.0,0.00012996,2]
[327102220,1715812253849,-500.0,0.00012996,2]
[327102221,1715812253858,-500.0,0.00012996,2]
[327102222,1715812253872,-500.0,0.00012996,2]
[327102223,1715812253881,-509.79138112,0.00012996,2]
[327102224,1715812253890,-278.41,0.00012996,2]
[327102225,1715812253899,-422.72,0.00012996,2]
[327102226,1715812253911,-500.0,0.00012996,2]
[327102227,1715812253921,-500.0,0.00012996,2]
[327102228,1715812253930,-500.0,0.00012996,2]
[327102229,1715812253941,-500.0,0.00012996,2]
[327102230,1715812253952,-500.0,0.00012996,2]
[327102231,1715812253962,-500.0,0.00012996,2]
[327102232,1715812253972,-500.0,0.00012996,2]
[327102233,1715812253982,-500.0,0.00012996,2]
[327102234,1715812253991,-500.0,0.00012996,2]
[327102235,1715812254000,-500.0,0.00012996,2]
[327102236,1715812254010,-500.0,0.00012996,2]
[327102237,1715812254020,-500.0,0.00012996,2]
[327102238,1715812254030,-614.24,0.00012996,2]
[327102239,1715812254039,-500.0,0.00012996,2]
[327102240,1715812254048,-364.47,0.00012996,2]
[327102241,1715812254057,-500.0,0.00012996,2]
[327102242,1715812254068,-500.0,0.00012996,2]
[327102243,1715812254077,-500.0,0.00012996,2]
[327102244,1715812254086,-500.0,0.00012996,2]
[327102245,1715812254095,-500.0,0.00012996,2]
[327102246,1715812254104,-500.0,0.00012996,2]
[327102247,1715812254114,-500.0,0.00012996,2]
[327102248,1715812254123,-500.0,0.00012996,2]
[327102249,1715812254132,-500.0,0.00012996,2]
[327102250,1715812254141,-500.0,0.00012996,2]
[327102251,1715812254151,-500.0,0.00012996,2]
[327102252,1715812254160,-500.0,0.00012996,2]
[327102253,1715812254169,-500.0,0.00012996,2]
[327102254,1715812254178,-500.0,0.00012996,2]
[327102255,1715812254187,-500.0,0.00012996,2]
[327102256,1715812254197,-632.58,0.00012996,2]
[327102257,1715812254206,-500.0,0.00012996,2]
[327102258,1715812254215,-500.0,0.00012996,2]
[327102259,1715812254224,-500.0,0.00012996,2]
[327102260,1715812254234,-500.0,0.00012996,2]
[327102261,1715812254243,-500.0,0.00012996,2]
[327102262,1715812254252,-500.0,0.00012996,2]
[327102263,1715812254262,-500.0,0.00012996,2]
[327102264,1715812254271,-500.0,0.00012996,2]
[327102265,1715812254282,-500.0,0.00012996,2]
[327102266,1715812254292,-500.0,0.00012996,2]
[327102267,1715812254301,-201.28914956,0.00012996,2]
[327102268,1715812254311,-500.0,0.00012996,2]
[327102269,1715812254322,-500.0,0.00012996,2]
[327102270,1715812254331,-500.0,0.00012996,2]
[327102271,1715812254340,-500.0,0.00012996,2]
[327102272,1715812254349,-500.0,0.00012996,2]
[327102273,1715812254358,-500.0,0.00012996,2]
[327102274,1715812254368,-500.0,0.00012996,2]
[327102275,1715812254377,-509.59289329,0.00012996,2]
[327102276,1715812254387,-500.0,0.00012996,2]
[327102277,1715812254397,-500.0,0.00012996,2]
[327102278,1715812254407,-500.0,0.00012996,2]
[327102279,1715812254417,-500.0,0.00012996,2]
[327102280,1715812254427,-505.52554381,0.00012996,2]
[327102281,1715812254437,-500.0,0.00012996,2]
[327102282,1715812254446,-430.34411022,0.00012996,2]
[327102283,1715812254456,-500.0,0.00012996,2]
[327102284,1715812254466,-500.0,0.00012996,2]
[327102285,1715812254476,-500.0,0.00012996,2]
[327102286,1715812254487,-500.0,0.00012996,2]
[327102287,1715812254496,-500.0,0.00012996,2]
[327102288,1715812254506,-504.58,0.00012996,2]
[327102289,1715812254515,-500.0,0.00012996,2]
[327102290,1715812254524,-500.0,0.00012996,2]
[327102291,1715812254534,-500.0,0.00012996,2]
[327102292,1715812254543,-500.0,0.00012996,2]
[327102293,1715812254553,-500.0,0.00012996,2]
[327102294,1715812254562,-500.0,0.00012996,2]
[327102295,1715812254573,-500.0,0.00012996,2]
[327102296,1715812254583,-500.0,0.00012996,2]
[327102297,1715812254592,-500.0,0.00012996,2]
[327102298,1715812254602,-500.0,0.00012996,2]
[327102299,1715812254612,-500.0,0.00012996,2]
[327102300,1715812254621,-500.0,0.00012996,2]
[327102301,1715812254631,-500.0,0.00012996,2]
[327102302,1715812254640,-500.0,0.00012996,2]
[327102303,1715812254650,-500.0,0.00012996,2]
[327102304,1715812254659,-603.78,0.00012996,2]
[327102305,1715812254670,-500.0,0.00012996,2]
[327102306,1715812254679,-500.0,0.00012996,2]
[327102307,1715812254689,-500.0,0.00012996,2]
[327102308,1715812254698,-500.0,0.00012996,2]
[327102309,1715812254708,-500.0,0.00012996,2]
[327102310,1715812254718,-500.0,0.00012996,2]
[327102311,1715812254728,-500.0,0.00012996,2]
[327102312,1715812254738,-253.71565893,0.00012996,2]
[327102313,1715812254747,-500.0,0.00012996,2]
[327102314,1715812254757,-500.0,0.00012996,2]
[327102315,1715812254767,-500.0,0.00012996,2]
[327102316,1715812254776,-500.0,0.00012996,2]
[327102317,1715812254786,-500.0,0.00012996,2]
[327102318,1715812254795,-500.0,0.00012996,2]
[327102319,1715812254805,-500.0,0.00012996,2]
[327102320,1715812254815,-500.0,0.00012996,2]
[327102321,1715812254825,-500.0,0.00012996,2]
[327102322,1715812254834,-500.0,0.00012996,2]
[327102323,1715812254843,-500.0,0.00012996,2]
[327102324,1715812254853,-500.0,0.00012996,2]
[327102325,1715812254863,-500.0,0.00012996,2]
[327102326,1715812254875,-500.0,0.00012996,2]
[327102327,1715812254885,-500.0,0.00012996,2]
[327102328,1715812254894,-635.49,0.00012996,2]
[327102329,1715812254904,-180.79,0.00012996,2]
[327102330,1715812254914,-564.06742354,0.00012996,2]
[327102331,1715812254924,-428.96,0.00012996,2]
[327102332,1715812254933,-500.0,0.00012996,2]
[327102333,1715812254943,-508.35440522,0.00012996,2]
[327102334,1715812254954,-510.68933564,0.00012996,2]
[327102335,1715812254964,-500.0,0.00012996,2]
[327102336,1715812254974,-520.71,0.00012996,2]
[327102337,1715812254983,-500.0,0.00012996,2]
[327102338,1715812254995,-500.0,0.00012996,2]
[327102339,1715812255004,-500.0,0.00012996,2]
[327102340,1715812255014,-500.0,0.00012996,2]
[327102341,1715812255024,-500.0,0.00012996,2]
[327102342,1715812255033,-500.0,0.00012996,2]
[327102343,1715812255043,-500.0,0.00012996,2]
[327102344,1715812255052,-500.0,0.00012996,2]
[327102345,1715812255062,-500.0,0.00012996,2]
[327102346,1715812255072,-609.39,0.00012996,2]
[327102347,1715812255082,-571.75987143,0.00012996,2]
[327102348,1715812255091,-500.0,0.00012996,2]
[327102349,1715812255100,-495.9392504,0.00012996,2]
[327102350,1715812255110,-500.0,0.00012996,2]
[327102351,1715812255119,-500.0,0.00012996,2]
[327102352,1715812255128,-500.0,0.00012996,2]
[327102353,1715812255138,-500.0,0.00012996,2]
[327102354,1715812255147,-500.0,0.00012996,2]
[327102355,1715812255156,-500.0,0.00012996,2]
[327102356,1715812255166,-500.0,0.00012996,2]
[327102357,1715812255175,-500.0,0.00012996,2]
[327102358,1715812255185,-500.0,0.00012996,2]
[327102359,1715812255195,-500.0,0.00012996,2]
[327102360,1715812255205,-257.3,0.00012996,2]
[327102361,1715812255214,-500.0,0.00012996,2]
[327102362,1715812255224,-500.0,0.00012996,2]
[327102363,1715812255234,-500.0,0.00012996,2]
[327102364,1715812255243,-150.0,0.00012996,2]
[327102365,1715812255253,-263.84,0.00012996,2]
[327102366,1715812255262,-523.00564559,0.00012996,2]
[327102367,1715812255272,-500.0,0.00012996,2]
[327102368,1715812255282,-409.55,0.00012996,2]
[327102369,1715812255292,-306.56000874,0.00012996,2]
[327102370,1715812255301,-526.7432381,0.00012996,2]
[327102371,1715812255311,-500.0,0.00012996,2]
[327102372,1715812255322,-167.72734135,0.00012996,2]
[327102373,1715812255331,-500.0,0.00012996,2]
[327102374,1715812255341,-500.0,0.00012996,2]
[327102375,1715812255351,-497.83,0.00012996,2]
[327102376,1715812255360,-500.0,0.00012996,2]
[327102377,1715812255370,-500.0,0.00012996,2]
[327102378,1715812255380,-500.0,0.00012996,2]
[327102379,1715812255390,-500.0,0.00012996,2]
[327102380,1715812255401,-410.68516482,0.00012996,2]
[327102381,1715812255411,-500.0,0.00012996,2]
[327102382,1715812255420,-500.0,0.00012996,2]
[327102383,1715812255430,-500.0,0.00012996,2]
[327102384,1715812255440,-500.0,0.00012996,2]
[327102385,1715812255449,-500.0,0.00012996,2]
[327102386,1715812255459,-500.0,0.00012996,2]
[327102387,1715812255469,-557.10295657,0.00012996,2]
[327102388,1715812255479,-227.21,0.00012996,2]
[327102389,1715812255492,-500.0,0.00012996,2]
[327102390,1715812255501,-500.0,0.00012996,2]
[327102391,1715812255511,-500.0,0.00012996,2]
[327102392,1715812255521,-525.04548813,0.00012996,2]
[327102393,1715812255531,-500.0,0.00012996,2]
[327102394,1715812255540,-500.0,0.00012996,2]
[327102395,1715812255550,-546.4356378,0.00012996,2]
[327102396,1715812255560,-500.0,0.00012996,2]
[327102397,1715812255570,-500.0,0.00012996,2]
[327102398,1715812255580,-532.23486107,0.00012996,2]
[327102399,1715812255590,-303.16506749,0.00012996,2]
[327102400,1715812255600,-513.69,0.00012996,2]
[327102401,1715812255610,-500.0,0.00012996,2]
[327102402,1715812255620,-500.0,0.00012996,2]
[327102403,1715812255629,-246.09,0.00012996,2]
[327102404,1715812255639,-500.0,0.00012996,2]
[327102405,1715812255649,-385.11486749,0.00012996,2]
[327102406,1715812255658,-346.23,0.00012996,2]
[327102407,1715812255668,-593.55252795,0.00012996,2]
[327102408,1715812255678,-500.0,0.00012996,2]
[327102409,1715812255688,-416.66,0.00012996,2]
[327102410,1715812255698,-500.0,0.00012996,2]
[327102411,1715812255707,-500.0,0.00012996,2]
[327102412,1715812255717,-567.83,0.00012996,2]
[327102413,1715812255727,-567.83,0.00012996,2]
[327102414,1715812255737,-500.0,0.00012996,2]
[327102415,1715812255747,-500.0,0.00012996,2]
[327102416,1715812255757,-500.0,0.00012996,2]
[327102417,1715812255767,-500.0,0.00012996,2]
[327102418,1715812255776,-338.02838037,0.00012996,2]
[327102419,1715812255785,-500.0,0.00012996,2]
[327102420,1715812255794,-500.0,0.00012996,2]
[327102421,1715812255804,-251.0,0.00012996,2]
[327102422,1715812255814,-500.0,0.00012996,2]
[327102423,1715812255824,-500.0,0.00012996,2]
[327102424,1715812255834,-500.0,0.00012996,2]
[327102425,1715812255844,-500.0,0.00012996,2]
[327102426,1715812255853,-500.0,0.00012996,2]
[327102427,1715812255864,-500.0,0.00012996,2]
[327102428,1715812255875,-500.0,0.00012996,2]
[327102429,1715812255884,-500.0,0.00012996,2]
[327102430,1715812255894,-500.0,0.00012996,2]
[327102431,1715812255905,-500.0,0.00012996,2]
[327102432,1715812255915,-500.0,0.00012996,2]
[327102433,1715812255926,-500.0,0.00012996,2]
[327102434,1715812255937,-500.0,0.00012996,2]
[327102435,1715812255949,-500.0,0.00012996,2]
[327102436,1715812255959,-558.04,0.00012996,2]
[327102437,1715812255970,-558.04,0.00012996,2]
[327102438,1715812255979,-500.0,0.00012996,2]
[327102439,1715812255988,-500.0,0.00012996,2]
[327102440,1715812255998,-500.0,0.00012996,2]
[327102441,1715812256007,-500.0,0.00012996,2]
[327102442,1715812256017,-500.0,0.00012996,2]
[327102443,1715812256027,-500.0,0.00012996,2]
[327102444,1715812256036,-578.0219427,0.00012996,2]
[327102445,1715812256045,-500.0,0.00012996,2]
[327102446,1715812256055,-500.0,0.00012996,2]
[327102447,1715812256065,-500.0,0.00012996,2]
[327102448,1715812256074,-500.0,0.00012996,2]
[327102449,1715812256083,-838.17,0.00012996,2]
[327102450,1715812256093,-838.17,0.00012996,2]
[327102451,1715812256103,-500.0,0.00012996,2]
[327102452,1715812256113,-500.0,0.00012996,2]
[327102453,1715812256124,-500.0,0.00012996,2]
[327102454,1715812256135,-500.0,0.00012996,2]
[327102455,1715812256145,-517.88085068,0.00012996,2]
[327102456,1715812256155,-500.0,0.00012996,2]
[327102457,1715812256166,-500.0,0.00012996,2]
[327102458,1715812256177,-500.0,0.00012996,2]
[327102459,1715812256187,-500.0,0.00012996,2]
[327102460,1715812256196,-500.0,0.00012996,2]
[327102461,1715812256205,-770.97,0.00012996,2]
[327102462,1715812256216,-500.0,0.00012996,2]
[327102463,1715812256227,-770.97,0.00012996,2]
[327102464,1715812256237,-500.0,0.00012996,2]
[327102465,1715812256247,-648.15,0.00012996,2]
[327102466,1715812256256,-648.15,0.00012996,2]
[327102467,1715812256265,-500.0,0.00012996,2]
[327102468,1715812256275,-500.0,0.00012996,2]
[327102469,1715812256284,-603.35,0.00012996,2]
[327102470,1715812256294,-603.35,0.00012996,2]
[327102471,1715812256303,-500.0,0.00012996,2]
[327102472,1715812256313,-500.0,0.00012996,2]
[327102473,1715812256323,-500.0,0.00012996,2]
[327102474,1715812256333,-573.74,0.00012996,2]
[327102475,1715812256342,-1476.3,0.00012996,2]
[327102476,1715812256353,-500.0,0.00012996,2]
[327102477,1715812256362,-1476.3,0.00012996,2]